fUST/lending_fUST_20250719
["ID","MTS","AMOUNT","RATE_DAILY","PERIOD"]
[373134400,1752875225486,5000.0,0.000164,2]
[373134401,1752875240959,5000.0,0.000164,2]
[373134402,1752875258978,5000.0,0.000164,2]
[373134403,1752875275186,5000.0,0.000164,2]
[373134404,1752875290790,5000.0,0.000164,2]
[373134405,1752875306524,5000.0,0.000164,2]
[373134406,1752875322643,5000.0,0.000164,2]
[373134407,1752875337629,5000.0,0.000164,2]
[373134408,1752875350109,2181.9005249,0.00015695,2]
[373134409,1752875353427,5000.0,0.000164,2]
[373134410,1752875355863,396.5,0.00015571,2]
[373134411,1752875369070,5000.0,0.000164,2]
[373134412,1752875384303,5000.0,0.000164,2]
[373134413,1752875400517,5000.0,0.000164,2]
[373134414,1752875415515,5000.0,0.000164,2]
[373134415,1752875431111,5000.0,0.000164,2]
[373134443,1752875432611,-537.35,0.00016445,2]
[373134450,1752875432674,-143.51302361,0.00016445,2]
[373134452,1752875432684,-178.16929021,0.00016447,2]
[373134454,1752875432693,-300.0,0.00016501,2]
[373134456,1752875432704,-300.0,0.00016501,2]
[373134458,1752875432713,-18.18442849,0.00016501,2]
[373134838,1752875438696,-1181.81557151,0.00016501,2]
[373134839,1752875438706,-460.0,0.00016502,2]
[373134840,1752875438716,-460.0,0.00016502,2]
[373134841,1752875438726,-1063.69,0.00016502,2]
[373134842,1752875438738,-460.0,0.00016502,2]
[373134843,1752875438748,-460.0,0.00016502,2]
[373134844,1752875438758,-460.0,0.00016502,2]
[373134845,1752875438768,-460.0,0.00016502,2]
[373134846,1752875438778,-460.0,0.00016502,2]
[373134847,1752875438787,-460.0,0.00016502,2]
[373134848,1752875438796,-1264.08,0.00016502,2]
[373134849,1752875438807,-460.0,0.00016502,2]
[373134850,1752875438818,-1897.7,0.00016502,2]
[373134851,1752875438829,-460.0,0.00016545,2]
[373134852,1752875438841,-206.87878268,0.00016545,2]
[373134853,1752875438851,-460.0,0.00016545,2]
[373134854,1752875438862,-460.0,0.00016545,2]
[373134855,1752875438872,-460.0,0.00016545,2]
[373134856,1752875438882,-460.0,0.00016545,2]
[373134857,1752875438893,-1562.65,0.00016545,2]
[373134858,1752875438902,-460.0,0.00016545,2]
[373134859,1752875438912,-460.0,0.00016545,2]
[373134860,1752875438922,-1096.08,0.00016545,2]
[373134861,1752875438931,-3445.77,0.00016545,2]
[373134862,1752875438941,-484.62,0.00016545,2]
[373134863,1752875438950,-460.0,0.00016545,2]
[373134864,1752875438960,-497.91,0.00016545,2]
[373134865,1752875438970,-460.0,0.00016545,2]
[373134866,1752875438979,-460.0,0.00016547,2]
[373134867,1752875438988,-460.0,0.00016547,2]
[373134868,1752875438998,-460.0,0.00016547,2]
[373134869,1752875439007,-460.0,0.00016547,2]
[373134870,1752875439017,-460.0,0.00016547,2]
[373134871,1752875439026,-460.0,0.00016547,2]
[373134872,1752875439036,-460.0,0.00016547,2]
[373134873,1752875439046,-151.3496386,0.00016547,2]
[373134874,1752875439056,-460.0,0.00016547,2]
[373134875,1752875439065,-460.0,0.00016547,2]
[373134876,1752875439074,-460.0,0.00016547,2]
[373134877,1752875439084,-460.0,0.00016547,2]
[373134878,1752875439094,-555.92,0.00016547,2]
[373134879,1752875439104,-530.41,0.00016547,2]
[373134880,1752875439114,-460.0,0.00016547,2]
[373134881,1752875439123,-460.0,0.00016547,2]
[373134882,1752875439134,-460.0,0.00016547,2]
[373134883,1752875439149,-1540.02,0.00016547,2]
[373134884,1752875439160,-460.0,0.00016547,2]
[373134885,1752875439169,-638.11,0.00016547,2]
[373134886,1752875439179,-460.0,0.00016547,2]
[373134887,1752875439190,-460.0,0.00016547,2]
[373134888,1752875439199,-460.0,0.00016547,2]
[373134889,1752875439208,-691.29,0.00016547,2]
[373134890,1752875439220,-460.0,0.00016547,2]
[373134891,1752875439230,-460.0,0.00016646,2]
[373134892,1752875439239,-86.22496841,0.00016646,2]
[373134893,1752875439251,-373.77503159,0.00016646,2]
[373134894,1752875439261,-241.66987603,0.00016646,2]
[373134895,1752875439278,-218.33012397,0.00016646,2]
[373134896,1752875439288,-460.0,0.00016646,2]
[373134897,1752875439297,-460.0,0.00016646,2]
[373134898,1752875439307,-460.0,0.00016646,2]
[373134899,1752875439316,-460.0,0.00016646,2]
[373134900,1752875439326,-460.0,0.00016646,2]
[373134901,1752875439335,-1106.98651392,0.00016646,2]
[373134902,1752875439346,-379.91348608,0.00016646,2]
[373134903,1752875439356,-460.0,0.00016646,2]
[373134904,1752875439367,-96.6912223,0.00016646,2]
[373134905,1752875439379,-54.3087777,0.00016646,2]
[373134906,1752875439390,-151.0,0.00016646,2]
[373134907,1752875439400,-500.0,0.00016646,2]
[373134908,1752875439410,-718.16,0.00016646,2]
[373134909,1752875439421,-460.0,0.00016646,2]
[373134910,1752875439430,-460.0,0.00016646,2]
[373134911,1752875439442,-460.0,0.00016647,2]
[373134912,1752875439452,-460.0,0.00016647,2]
[373134913,1752875439462,-460.0,0.00016647,2]
[373134914,1752875439473,-274.867477,0.00016647,2]
[373134915,1752875439484,-460.0,0.00016647,2]
[373134916,1752875439494,-460.0,0.00016647,2]
[373134917,1752875439506,-460.0,0.00016647,2]
[373134918,1752875439516,-500.0,0.00016647,2]
[373134919,1752875439527,-151.0,0.00016647,2]
[373134920,1752875439536,-151.0,0.00016647,2]
[373134921,1752875439546,-269.52684723,0.00016647,2]
[373134922,1752875439556,-151.0,0.00016647,2]
[373134923,1752875439566,-460.0,0.00016647,2]
[373134924,1752875439575,-1878.96967391,0.00016647,2]
[373134968,1752875440766,-622.40080329,0.00016502,2]
[373134971,1752875440778,-330.154,0.00016502,2]
[373134973,1752875440790,-7855.15049491,0.00016502,2]
[373134979,1752875440834,-943.60000011,0.00016502,2]
[373135215,1752875444003,-554.64,0.00016502,2]
[373135225,1752875446465,5000.0,0.000164,2]
[373135227,1752875447476,-1580.85,0.00016502,2]
[373135228,1752875447489,-1437.1938843,0.00016502,2]
[373135229,1752875447501,-8036.5795815,0.00016502,2]
[373135230,1752875462013,5000.0,0.000164,2]
[373135231,1752875477963,5000.0,0.000164,2]
[373135232,1752875488249,24900.0,0.00015675,2]
[373135233,1752875493640,10049.760765,0.000164,2]
[373135234,1752875494129,5000.0,0.000164,2]
[373135235,1752875509937,5000.0,0.000164,2]
[373135236,1752875516581,40000.0,0.000164,2]
[373135237,1752875525948,5000.0,0.000164,2]
[373135238,1752875541859,5000.0,0.000164,2]
[373135239,1752875548965,150.0,0.00014729,2]
[373135240,1752875549947,150.0,0.00015431,2]
[373135241,1752875550254,150.0,0.00016132,2]
[373135242,1752875557041,5000.0,0.000164,2]
[373135243,1752875557482,177.037385,0.0001578,2]
[373135244,1752875557717,177.037385,0.0001578,120]
[373135245,1752875572128,4780.39637294,0.000164,2]
[373135248,1752875771615,1057.726186,0.00015545,2]
[373135249,1752875792832,10000.0,0.00015546,2]
[373135250,1752876096795,7396.44674293,0.00016311,2]
[373135254,1752876160083,877.07804223,0.00016344,2]
[373135255,1752876189989,656.864646,0.00013699,2]
[373135257,1752876208746,387.84777042,0.00016342,2]
[373135258,1752876274783,231.96322403,0.0001595,2]
[373135259,1752876453104,-160.0,0.00016402,2]
[373135260,1752876453126,-738.84,0.00016435,3]
[373135261,1752876453149,-450.8,0.00016435,3]
[373135262,1752876453170,-166.0,0.00016438,2]
[373135263,1752876453191,-1200.0,0.00016441,2]
[373135264,1752876453213,-1366.34570588,0.00016442,2]
[373135265,1752876469367,5449.2977028,0.00016345,2]
[373135266,1752876504812,850.16771588,0.00016342,2]
[373135269,1752876611673,7695.17954686,0.00016377,2]
[373135352,1752876637923,-440.76393697,0.00016424,2]
[373135353,1752876637944,-75.19413009,0.0001644,2]
[373135356,1752876638026,-1124.80586991,0.0001644,2]
[373135357,1752876638036,-300.0,0.0001644,2]
[373135358,1752876638046,-300.0,0.0001644,2]
[373135359,1752876638057,-300.0,0.0001644,2]
[373135361,1752876638067,-300.0,0.0001644,2]
[373135362,1752876638076,-300.0,0.0001644,2]
[373135363,1752876638086,-460.0,0.00016441,2]
[373135364,1752876638096,-460.0,0.00016441,2]
[373135365,1752876638106,-460.0,0.00016441,2]
[373135366,1752876638115,-460.0,0.00016441,2]
[373135367,1752876638125,-460.0,0.00016441,2]
[373135368,1752876638135,-460.0,0.00016441,2]
[373135369,1752876638145,-1320.38,0.00016441,2]
[373135370,1752876638154,-160.0,0.00016441,2]
[373135371,1752876638163,-460.0,0.00016441,2]
[373135372,1752876638172,-460.0,0.00016441,2]
[373135373,1752876638181,-460.0,0.00016441,2]
[373135374,1752876638190,-37155.72570837,0.00016441,2]
[373135375,1752876638199,-460.0,0.00016442,2]
[373135376,1752876638208,-460.0,0.00016442,2]
[373135377,1752876638217,-460.0,0.00016442,2]
[373135378,1752876638226,-575.74330634,0.00016442,2]
[373135379,1752876638235,-439.49256141,0.00016442,2]
[373135380,1752876638244,-460.0,0.00016442,2]
[373135381,1752876638254,-460.0,0.00016442,2]
[373135382,1752876638263,-306.16309087,0.00016442,2]
[373135383,1752876638272,-460.0,0.00016442,2]
[373135384,1752876638281,-3602.87,0.00016442,2]
[373135385,1752876638290,-500.0,0.00016442,2]
[373135386,1752876638300,-500.0,0.00016442,2]
[373135387,1752876638312,-547.6801425,0.00016442,2]
[373135388,1752876638321,-500.0,0.00016442,2]
[373135389,1752876638330,-500.0,0.00016442,2]
[373135390,1752876638339,-331.39897984,0.00016442,2]
[373135391,1752876638348,-187.93220565,0.00016442,2]
[373135392,1752876638357,-347.1941545,0.00016442,2]
[373135393,1752876638366,-500.0,0.00016442,2]
[373135394,1752876638375,-460.0,0.00016443,2]
[373135395,1752876638385,-460.0,0.00016443,2]
[373135396,1752876638394,-460.0,0.00016443,2]
[373135397,1752876638403,-460.0,0.00016443,2]
[373135398,1752876638412,-460.0,0.00016443,2]
[373135399,1752876638421,-460.0,0.00016443,2]
[373135400,1752876638431,-1923.94,0.00016443,2]
[373135401,1752876638441,-460.0,0.00016443,2]
[373135402,1752876638450,-460.0,0.00016443,2]
[373135403,1752876638459,-460.0,0.00016443,2]
[373135404,1752876638469,-460.0,0.00016443,2]
[373135405,1752876638477,-1604.81,0.00016443,2]
[373135406,1752876638486,-460.0,0.00016443,2]
[373135407,1752876638496,-460.0,0.00016443,2]
[373135408,1752876638509,-460.0,0.00016443,2]
[373135409,1752876638518,-1078.1,0.00016443,2]
[373135410,1752876638527,-502.76,0.00016443,2]
[373135411,1752876638536,-460.71340718,0.00016443,2]
[373135412,1752876638546,-460.0,0.00016443,2]
[373135413,1752876638555,-460.0,0.00016443,2]
[373135414,1752876638564,-517.55,0.00016443,2]
[373135415,1752876638573,-460.0,0.00016443,2]
[373135416,1752876638583,-460.0,0.00016443,2]
[373135417,1752876638593,-460.0,0.00016443,2]
[373135418,1752876638602,-500.0,0.00016444,2]
[373135419,1752876638611,-2217.6001666,0.00016444,2]
[373135420,1752876638620,-456.83973707,0.00016444,2]
[373135421,1752876638629,-2217.6001666,0.00016444,2]
[373135422,1752876638638,-2217.6001666,0.00016444,2]
[373135423,1752876638647,-2217.6001666,0.00016444,2]
[373135424,1752876638656,-2217.6001666,0.00016444,2]
[373135425,1752876638665,-2217.6001666,0.00016444,2]
[373135426,1752876638675,-2217.6001666,0.00016444,2]
[373135427,1752876638684,-2217.6001666,0.00016444,2]
[373135428,1752876638693,-2217.6001666,0.00016444,2]
[373135429,1752876638702,-2217.6001666,0.00016444,2]
[373135430,1752876638711,-2217.6001666,0.00016444,2]
[373135431,1752876638720,-2217.6001666,0.00016444,2]
[373135432,1752876638729,-2217.6001666,0.00016444,2]
[373135433,1752876638739,-2374.23893736,0.00016444,2]
[373135434,1752876638747,-2374.23893736,0.00016444,2]
[373135435,1752876638757,-2374.23893736,0.00016444,2]
[373135436,1752876638766,-2374.23893736,0.00016444,2]
[373135437,1752876638775,-2374.23893736,0.00016444,2]
[373135438,1752876638785,-2374.23893736,0.00016444,2]
[373135439,1752876638794,-2527.43975132,0.00016444,2]
[373135440,1752876638803,-2527.43975132,0.00016444,2]
[373135441,1752876638812,-2527.43975132,0.00016444,2]
[373135442,1752876638821,-2527.43975132,0.00016444,2]
[373135443,1752876638830,-2527.43975132,0.00016444,2]
[373135444,1752876638839,-460.0,0.00016444,2]
[373135445,1752876638849,-460.0,0.00016444,2]
[373135446,1752876638859,-460.0,0.00016444,2]
[373135447,1752876638869,-531.87061364,0.00016444,2]
[373135448,1752876638878,-390.47501876,0.00016444,2]
[373135449,1752876638888,-475.9132921,0.00016444,2]
[373135450,1752876638898,-460.0,0.00016444,2]
[373135451,1752876638908,-462.82008008,0.00016444,2]
[373135452,1752876638919,-460.0,0.00016444,2]
[373135453,1752876638928,-460.0,0.00016444,2]
[373135454,1752876638938,-460.0,0.00016444,2]
[373135455,1752876638948,-460.0,0.00016444,2]
[373135456,1752876638958,-460.0,0.00016444,2]
[373135457,1752876638968,-460.0,0.00016444,2]
[373135458,1752876638978,-460.0,0.00016444,2]
[373135459,1752876638988,-473.44425675,0.00016444,2]
[373135460,1752876638998,-460.0,0.00016444,2]
[373135461,1752876639009,-460.0,0.00016444,2]
[373135462,1752876639019,-460.0,0.00016444,2]
[373135463,1752876639029,-460.0,0.00016444,2]
[373135464,1752876639038,-460.0,0.00016444,2]
[373135465,1752876639048,-460.0,0.00016444,2]
[373135466,1752876639059,-460.0,0.00016444,2]
[373135467,1752876639069,-460.0,0.00016444,2]
[373135468,1752876639078,-460.0,0.00016444,2]
[373135469,1752876639088,-460.0,0.00016444,2]
[373135470,1752876639098,-461.07052971,0.00016444,2]
[373135471,1752876639108,-460.0,0.00016444,2]
[373135472,1752876639118,-460.0,0.00016444,2]
[373135473,1752876639127,-460.0,0.00016444,2]
[373135474,1752876639137,-460.0,0.00016444,2]
[373135475,1752876639147,-460.0,0.00016444,2]
[373135476,1752876639156,-460.0,0.00016444,2]
[373135477,1752876639166,-460.0,0.00016444,2]
[373135478,1752876639175,-460.0,0.00016444,2]
[373135479,1752876639185,-516.6002128,0.00016444,2]
[373135480,1752876639194,-460.0,0.00016444,2]
[373135481,1752876639204,-460.0,0.00016444,2]
[373135482,1752876639214,-460.0,0.00016444,2]
[373135483,1752876639226,-460.0,0.00016444,2]
[373135484,1752876639235,-460.0,0.00016444,2]
[373135485,1752876639245,-460.0,0.00016444,2]
[373135486,1752876639254,-460.0,0.00016444,2]
[373135487,1752876639264,-631.1,0.00016444,2]
[373135488,1752876639273,-460.0,0.00016444,2]
[373135489,1752876639282,-460.0,0.00016444,2]
[373135490,1752876639293,-460.0,0.00016444,2]
[373135491,1752876639306,-460.0,0.00016444,2]
[373135492,1752876639316,-460.0,0.00016444,2]
[373135493,1752876639325,-460.0,0.00016444,2]
[373135494,1752876639335,-460.0,0.00016444,2]
[373135495,1752876639345,-460.0,0.00016444,2]
[373135496,1752876639354,-460.0,0.00016444,2]
[373135497,1752876639364,-460.0,0.00016444,2]
[373135498,1752876639374,-460.0,0.00016444,2]
[373135499,1752876639384,-1622.02,0.00016444,2]
[373135500,1752876639394,-460.0,0.00016444,2]
[373135501,1752876639403,-460.0,0.00016444,2]
[373135502,1752876639414,-460.0,0.00016444,2]
[373135503,1752876639424,-460.0,0.00016444,2]
[373135505,1752876639435,-151.0,0.00016444,2]
[373135506,1752876639444,-460.0,0.00016444,2]
[373135507,1752876639453,-460.0,0.00016444,2]
[373135509,1752876639463,-460.0,0.00016444,2]
[373135511,1752876639472,-460.0,0.00016444,2]
[373135513,1752876639482,-460.0,0.00016444,2]
[373135516,1752876639491,-460.0,0.00016444,2]
[373135518,1752876639504,-460.0,0.00016444,2]
[373135520,1752876639515,-460.0,0.00016444,2]
[373135522,1752876639525,-460.0,0.00016444,2]
[373135523,1752876639536,-460.0,0.00016444,2]
[373135524,1752876639546,-649.85,0.00016444,2]
[373135526,1752876639557,-460.0,0.00016444,2]
[373135528,1752876639567,-465.04997535,0.00016444,2]
[373135529,1752876639579,-460.0,0.00016444,2]
[373135530,1752876639590,-407.27528901,0.00016444,2]
[373135531,1752876639600,-460.0,0.00016444,2]
[373135533,1752876639610,-562.88057895,0.00016444,2]
[373135534,1752876639620,-460.0,0.00016444,2]
[373135535,1752876639629,-460.0,0.00016444,2]
[373135536,1752876639649,-460.0,0.00016444,2]
[373135537,1752876639658,-460.0,0.00016444,2]
[373135538,1752876639667,-460.0,0.00016444,2]
[373135539,1752876639677,-151.0,0.00016444,2]
[373135540,1752876639687,-369.78329955,0.00016444,2]
[373135541,1752876639697,-460.0,0.00016444,2]
[373135542,1752876639707,-460.0,0.00016444,2]
[373135543,1752876639716,-416.58861716,0.00016444,2]
[373135544,1752876639727,-460.0,0.00016444,2]
[373135545,1752876639738,-460.0,0.00016444,2]
[373135546,1752876639748,-460.0,0.00016444,2]
[373135547,1752876639758,-460.0,0.00016444,2]
[373135548,1752876639767,-460.0,0.00016444,2]
[373135550,1752876639776,-460.0,0.00016444,2]
[373135551,1752876639786,-460.0,0.00016444,2]
[373135553,1752876639795,-460.0,0.00016444,2]
[373135554,1752876639807,-460.1980221,0.00016444,2]
[373135555,1752876639817,-460.0,0.00016444,2]
[373135556,1752876639827,-460.0,0.00016444,2]
[373135557,1752876639837,-460.0,0.00016444,2]
[373135558,1752876639846,-460.0,0.00016444,2]
[373135559,1752876639857,-460.2633411,0.00016444,2]
[373135560,1752876639867,-460.0,0.00016444,2]
[373135561,1752876639877,-460.0,0.00016444,2]
[373135562,1752876639888,-2619.35695967,0.00016445,2]
[373135563,1752876639898,-271017.84035223,0.00016445,2]
[373135564,1752876639907,-500.0,0.00016445,2]
[373135565,1752876639917,-151.0,0.00016445,2]
[373135566,1752876639927,-151.0,0.00016445,2]
[373135567,1752876639936,-151.0,0.00016445,2]
[373135568,1752876639946,-151.0,0.00016445,2]
[373135569,1752876639956,-151.0,0.00016445,2]
[373135570,1752876639967,-151.0,0.00016445,2]
[373135571,1752876639977,-516.35994133,0.00016501,2]
[373135572,1752876639986,-460.0,0.00016501,2]
[373135573,1752876639996,-1490.28,0.00016501,2]
[373135574,1752876640006,-460.0,0.00016501,2]
[373135575,1752876640016,-460.0,0.00016501,2]
[373135576,1752876640026,-460.0,0.00016501,2]
[373135577,1752876640036,-460.0,0.00016501,2]
[373135578,1752876640046,-460.0,0.00016501,2]
[373135579,1752876640056,-460.0,0.00016501,2]
[373135580,1752876640066,-460.0,0.00016502,2]
[373135581,1752876640076,-460.0,0.00016502,2]
[373135582,1752876640085,-460.0,0.00016502,2]
[373135583,1752876640095,-460.0,0.00016502,2]
[373135584,1752876640104,-460.0,0.00016502,2]
[373135585,1752876640114,-460.0,0.00016502,2]
[373135586,1752876640124,-460.0,0.00016502,2]
[373135587,1752876640134,-460.0,0.00016502,2]
[373135588,1752876640144,-460.0,0.00016502,2]
[373135589,1752876640153,-403.88494086,0.00016502,2]
[373135590,1752876640163,-460.0,0.00016502,2]
[373135591,1752876640172,-460.0,0.00016502,2]
[373135592,1752876640183,-460.62403159,0.00016502,2]
[373135593,1752876640192,-460.0,0.00016502,2]
[373135594,1752876640202,-460.0,0.00016502,2]
[373135595,1752876640212,-151.358384,0.00016502,2]
[373135596,1752876640222,-463.59906748,0.00016502,2]
[373135597,1752876640234,-210.09564556,0.00016502,2]
[373135598,1752876640246,-460.0,0.00016502,2]
[373135599,1752876640255,-460.0,0.00016502,2]
[373135600,1752876640265,-460.0,0.00016502,2]
[373135601,1752876640275,-460.0,0.00016502,2]
[373135602,1752876640285,-460.0,0.00016502,2]
[373135603,1752876640294,-460.0,0.00016502,2]
[373135604,1752876640305,-460.0,0.00016502,2]
[373135605,1752876640316,-460.0,0.00016502,2]
[373135606,1752876640326,-460.0,0.00016502,2]
[373135607,1752876640433,-460.0,0.00016502,2]
[373135608,1752876640444,-460.0,0.00016544,2]
[373135609,1752876640455,-249.66,0.00016544,2]
[373135610,1752876640465,-222.2058019,0.00016544,2]
[373135611,1752876640476,-460.0,0.00016544,2]
[373135612,1752876640487,-460.0,0.00016544,2]
[373135613,1752876640498,-151.0,0.00016544,2]
[373135614,1752876640512,-460.0,0.00016544,2]
[373135615,1752876640522,-460.0,0.00016544,2]
[373135616,1752876640531,-460.0,0.00016544,2]
[373135617,1752876640542,-460.0,0.00016544,2]
[373135618,1752876640553,-465.23061377,0.00016544,2]
[373135619,1752876640567,-460.0,0.00016544,2]
[373135620,1752876640579,-500.0,0.00016544,2]
[373135621,1752876640590,-500.0,0.00016544,2]
[373135622,1752876640599,-500.0,0.00016544,2]
[373135623,1752876640609,-460.0,0.00016544,2]
[373135624,1752876640618,-460.0,0.00016544,2]
[373135625,1752876640627,-460.0,0.00016544,2]
[373135626,1752876640637,-460.0,0.00016544,2]
[373135627,1752876640646,-460.0,0.00016544,2]
[373135628,1752876640672,-151.0,0.00016544,2]
[373135629,1752876640682,-151.0,0.00016544,2]
[373135630,1752876640692,-743.2,0.00016544,2]
[373135631,1752876640702,-460.0,0.00016544,2]
[373135632,1752876640713,-151.0,0.00016544,2]
[373135633,1752876640723,-460.0,0.00016544,2]
[373135634,1752876640734,-460.0,0.00016544,2]
[373135635,1752876640745,-460.0,0.00016544,2]
[373135636,1752876640755,-151.0,0.00016544,2]
[373135637,1752876640764,-151.0,0.00016544,2]
[373135638,1752876640774,-151.0,0.00016544,2]
[373135639,1752876640785,-460.0,0.00016544,2]
[373135640,1752876640795,-460.0,0.00016544,2]
[373135641,1752876640809,-460.0,0.00016544,2]
[373135642,1752876640818,-460.0,0.00016544,2]
[373135643,1752876640828,-460.0,0.00016544,2]
[373135644,1752876640838,-460.0,0.00016544,2]
[373135645,1752876640847,-633.08,0.00016544,2]
[373135646,1752876640857,-460.0,0.00016544,2]
[373135647,1752876640867,-460.0,0.00016544,2]
[373135648,1752876640876,-460.0,0.00016544,2]
[373135649,1752876640886,-460.0,0.00016544,2]
[373135650,1752876640896,-460.0,0.00016544,2]
[373135651,1752876640906,-460.0,0.00016545,2]
[373135652,1752876640916,-3316.03,0.00016545,2]
[373135653,1752876640926,-460.0,0.00016546,2]
[373135654,1752876640935,-460.0,0.00016546,2]
[373135655,1752876640944,-327.09781849,0.00016546,2]
[373135656,1752876640954,-460.0,0.00016546,2]
[373135657,1752876640964,-460.0,0.00016546,2]
[373135658,1752876640974,-460.0,0.00016546,2]
[373135659,1752876640984,-460.0,0.00016546,2]
[373135660,1752876640993,-460.0,0.00016546,2]
[373135661,1752876641003,-460.0,0.00016546,2]
[373135662,1752876641012,-460.0,0.00016546,2]
[373135663,1752876641022,-460.0,0.00016546,2]
[373135664,1752876641032,-460.0,0.00016546,2]
[373135665,1752876641041,-460.0,0.00016546,2]
[373135666,1752876641051,-460.0,0.00016546,2]
[373135667,1752876641064,-500.0,0.00016546,2]
[373135668,1752876641074,-461.2,0.00016546,2]
[373135669,1752876641084,-460.0,0.00016546,2]
[373135670,1752876641094,-460.0,0.00016546,2]
[373135671,1752876641103,-460.0,0.00016546,2]
[373135672,1752876641113,-825.89,0.00016546,2]
[373135673,1752876641122,-460.0,0.00016546,2]
[373135674,1752876641132,-460.0,0.00016546,2]
[373135675,1752876641141,-460.0,0.00016546,2]
[373135676,1752876641151,-460.0,0.00016546,2]
[373135677,1752876641160,-460.0,0.00016546,2]
[373135678,1752876641170,-460.0,0.00016546,2]
[373135679,1752876641179,-460.0,0.00016546,2]
[373135680,1752876641189,-460.0,0.00016546,2]
[373135681,1752876641198,-460.0,0.00016546,2]
[373135682,1752876641207,-727.77546577,0.00016547,2]
[373135683,1752876641216,-460.0,0.00016547,2]
[373135684,1752876641226,-579.2039682,0.00016547,2]
[373135685,1752876641236,-460.0,0.00016547,2]
[373135686,1752876641246,-460.0,0.00016547,2]
[373135687,1752876641256,-460.0,0.00016547,2]
[373135688,1752876641266,-460.0,0.00016547,2]
[373135689,1752876641275,-460.0,0.00016547,2]
[373135690,1752876641286,-460.0,0.00016547,2]
[373135691,1752876641296,-460.0,0.00016547,2]
[373135692,1752876641306,-460.0,0.00016547,2]
[373135693,1752876641316,-460.0,0.00016547,2]
[373135694,1752876641326,-460.0,0.00016547,2]
[373135695,1752876641335,-460.0,0.00016547,2]
[373135696,1752876641345,-460.0,0.00016547,2]
[373135697,1752876641355,-460.0,0.00016547,2]
[373135698,1752876641364,-804.97,0.00016547,2]
[373135699,1752876641373,-460.0,0.00016547,2]
[373135700,1752876641383,-1371.26,0.00016547,2]
[373135701,1752876641393,-500.0,0.00016646,2]
[373135702,1752876641402,-2023.69,0.00016646,2]
[373135703,1752876641412,-460.0,0.00016646,2]
[373135704,1752876641422,-460.0,0.00016646,2]
[373135705,1752876641431,-460.0,0.00016646,2]
[373135706,1752876641441,-688.8901366,0.00016647,2]
[373135707,1752876641450,-330.0,0.00016647,2]
[373135708,1752876641459,-203.19342844,0.00016647,2]
[373135709,1752876641468,-151.0,0.00016647,2]
[373135710,1752876641478,-500.0,0.00016647,2]
[373135711,1752876641489,-500.0,0.00016647,2]
[373135712,1752876641500,-151.0,0.00016647,2]
[373135713,1752876641513,-151.0,0.00016647,2]
[373135714,1752876641523,-151.0,0.00016647,2]
[373135715,1752876641533,-500.0,0.00016647,2]
[373135716,1752876641545,-500.0,0.00016647,2]
[373135717,1752876641559,-500.0,0.00016647,2]
[373135718,1752876641573,-500.0,0.00016647,2]